bitfinex/quotes_BTCUSD_20240908
["timestamp","ask_amount","ask_price","bid_price","bid_amount"]
[1725811244338,0.1725,53823.0,53810.0,0.148669]
[1725811244556,0.1725,53823.0,53808.0,0.85]
[1725811244557,0.148642,53821.0,53808.0,0.998675]
[1725811244783,0.2125,53815.0,53808.0,0.86]
[1725811245001,0.2125,53815.0,53809.0,0.01]
[1725811245271,0.2125,53815.0,53811.0,0.148667]
[1725811245457,0.2125,53815.0,53809.0,0.01]
[1725811245458,0.2125,53815.0,53814.0,0.85]
[1725811245678,0.2125,53815.0,53814.0,1.39380684]
[1725811245921,0.2125,53815.0,53814.0,1.88587923]
[1725811246188,0.2125,53815.0,53814.0,1.57855923]
[1725811246410,0.2125,53815.0,53814.0,1.58855923]
[1725811246636,0.2125,53815.0,53814.0,1.88587923]
[1725811247103,0.2125,53815.0,53814.0,1.58855923]
[1725811247331,0.385,53828.0,53824.0,0.148631]
[1725811247567,0.385,53828.0,53827.0,0.148624]
[1725811247833,0.385,53828.0,53827.0,0.09364909]
[1725811248079,0.385,53828.0,53824.0,0.148631]
[1725811248295,0.385,53828.0,53825.0,0.148629]
[1725811249182,0.385,53828.0,53826.0,0.148625]
[1725811249393,0.385,53828.0,53827.0,0.15233916]
[1725811250044,0.385,53828.0,53827.0,0.8375437]
[1725811250259,0.385,53828.0,53827.0,0.0944237]
[1725811250689,0.385,53828.0,53826.0,0.148626]
[1725811250908,0.2125,53827.0,53823.0,0.35]
[1725811251116,0.2125,53827.0,53823.0,0.498635]
[1725811251548,0.2125,53827.0,53823.0,0.35]
[1725811251972,0.2125,53827.0,53823.0,0.498635]
[1725811252191,0.2125,53827.0,53824.0,0.148631]
[1725811252399,0.2125,53827.0,53824.0,0.297264]
[1725811252661,0.2125,53827.0,53826.0,0.148627]
[1725811252910,0.2125,53827.0,53826.0,0.09348889]
[1725811253119,0.2125,53827.0,53826.0,0.54383488]
[1725811253335,0.2125,53827.0,53826.0,0.84108888]
[1725811255823,0.2125,53827.0,53826.0,0.54383488]
[1725811256249,0.2125,53827.0,53825.0,0.85]
[1725811256473,0.2125,53827.0,53825.0,0.998628]
[1725811256905,0.2125,53827.0,53826.0,0.148627]
[1725811257165,0.2125,53827.0,53826.0,0.54268455]
[1725811257404,0.2125,53827.0,53826.0,1.13719255]
[1725811257645,0.2125,53827.0,53826.0,1.33194494]
[1725811258078,0.1869,53833.0,53832.0,1.29583]
[1725811258349,0.000815,53844.0,53832.0,1.54124355]
[1725811258565,0.2477,53842.0,53836.0,0.148597]
[1725811258781,0.2477,53842.0,53832.0,0.85]
[1725811258996,0.2477,53835.0,53816.0,2.4922]
[1725811259244,0.000815,53844.0,53822.0,0.35]
[1725811259245,0.2477,53825.0,53822.0,0.35]
[1725811259682,0.2477,53825.0,53824.0,0.00163]
[1725811260854,0.2477,53825.0,53816.0,0.297306]
[1725811260855,0.544959,53825.0,53808.0,0.85]
[1725811261082,0.4346,53816.0,53808.0,0.85]
[1725811261316,0.2477,53815.0,53808.0,0.85]
[1725811261862,0.2477,53815.0,53814.0,1.14732]
[1725811262071,0.2477,53815.0,53814.0,1.39563634]
[1725811262513,0.2477,53815.0,53814.0,1.69295634]
[1725811262759,0.1869,53822.0,53821.0,0.49864]
[1725811262994,0.65022436,53848.0,53821.0,0.49864]
[1725811262995,0.1869,53830.0,53829.0,0.445854]
[1725811263222,0.4346,53830.0,53829.0,0.5416922]
[1725811263475,0.4346,53830.0,53829.0,0.148617]
[1725811263685,0.4346,53830.0,53829.0,0.8389292]
[1725811264339,0.2477,53830.0,53829.0,0.8409292]
[1725811264812,0.1869,53835.0,53834.0,0.148604]
[1725811265024,0.1869,53835.0,53834.0,0.5416512]
[1725811265238,0.1869,53835.0,53834.0,1.6888602]
[1725811265486,0.1869,53840.0,53839.0,0.148591]
[1725811265728,0.1869,53840.0,53834.0,0.9458382]
[1725811265941,0.1869,53840.0,53834.0,0.85]
[1725811265942,0.2477,53839.0,53834.0,0.85]
[1725811266609,0.2477,53839.0,53834.0,1.147209]
[1725811266845,0.2477,53839.0,53836.0,0.148598]
[1725811267194,0.2474765,53839.0,53834.0,0.85]
[1725811267196,0.2474765,53839.0,53835.0,0.148601]
[1725811268040,0.2474765,53839.0,53834.0,0.85]
[1725811268688,0.2474765,53839.0,53828.0,0.647238]
[1725811268689,0.1869,53838.0,53828.0,0.647238]
[1725811268829,0.1869,53838.0,53828.0,0.35]
[1725811269200,0.297173,53841.0,53828.0,0.35]
[1725811269201,0.1869,53837.0,53834.0,0.148603]
[1725811269853,0.2477,53836.0,53833.0,0.148605]
[1725811270078,0.2477,53836.0,53835.0,0.148602]
[1725811270690,0.2477,53836.0,53835.0,0.09948824]
[1725811270944,0.2477,53836.0,53835.0,0.24809024]
[1725811271386,0.2477,53836.0,53833.0,0.148605]
[1725811271571,0.2477,53836.0,53834.0,0.148604]
[1725811271814,0.2477,53836.0,53831.0,0.14861]
[1725811272036,0.2477,53836.0,53830.0,0.297231]
[1725811272478,0.2477,53836.0,53832.0,0.148609]
[1725811272696,0.248514,53836.0,53832.0,0.148609]
[1725811273990,0.248514,53836.0,53824.0,0.01]
[1725811273991,0.4389,53833.0,53826.0,0.35]
[1725811274199,0.2476,53831.0,53826.0,0.35]
[1725811274643,0.2476,53831.0,53826.0,0.498625]
[1725811275082,0.2476,53831.0,53827.0,0.148623]
[1725811275298,0.2476,53831.0,53830.0,0.148616]
[1725811275954,0.2476,53831.0,53828.0,0.297241]
[1725811276164,0.2476,53831.0,53829.0,0.148617]
[1725811276374,0.2476,53831.0,53826.0,0.35]
[1725811276592,0.2476,53831.0,53829.0,0.148617]
[1725811276829,0.2476,53831.0,53827.0,0.297247]
[1725811277063,0.2476,53831.0,53828.0,0.14862]
[1725811277953,0.2476,53831.0,53828.0,0.148621]
[1725811278199,0.2476,53831.0,53826.0,0.35]
[1725811280684,0.2476,53831.0,53828.0,0.14862]
[1725811280931,0.2476,53831.0,53826.0,0.35]
[1725811280932,0.2476,53831.0,53826.0,0.647251]
[1725811281440,0.2476,53831.0,53827.0,0.148622]
[1725811282548,0.2476,53831.0,53826.0,0.647251]
[1725811282549,0.2476,53831.0,53826.0,0.35]
[1725811283224,0.2476,53831.0,53826.0,0.498626]
[1725811283454,0.2476,53831.0,53826.0,0.35]
[1725811283668,0.2476,53831.0,53829.0,0.148618]
[1725811283922,0.2476,53831.0,53826.0,0.35]
[1725811284133,0.2476,53831.0,53826.0,0.498625]
[1725811284343,0.2476,53831.0,53826.0,0.647253]
[1725811284578,0.2476,53831.0,53828.0,0.148621]
[1725811285038,0.2476,53831.0,53829.0,0.148618]
[1725811285483,0.2476,53831.0,53830.0,0.148616]
[1725811285696,0.2476,53831.0,53830.0,0.445848]
[1725811285938,0.2476,53831.0,53830.0,0.54580621]
[1725811286863,0.2476,53831.0,53830.0,0.148616]
[1725811288195,0.2476,53831.0,53829.0,0.148616]
[1725811288430,0.2476,53831.0,53830.0,0.148616]
[1725811288694,0.2476,53831.0,53828.0,0.297241]
[1725811288910,0.2476,53831.0,53826.0,0.351628]
[1725811289400,0.2582,53828.0,53826.0,0.351628]
[1725811289620,1.19652,53827.0,53826.0,0.001628]
[1725811290357,0.899272,53827.0,53826.0,0.001628]
[1725811291040,1.21952,53827.0,53826.0,0.001628]
[1725811291285,0.445905,53823.0,53822.0,0.001628]
[1725811291515,0.890405,53823.0,53822.0,0.001628]
[1725811291967,1.187675,53823.0,53822.0,0.001628]
[1725811293634,1.19518668,53823.0,53822.0,0.001628]
[1725811294056,1.49245668,53823.0,53822.0,0.001628]
[1725811295223,1.19518668,53823.0,53822.0,0.001628]
[1725811295460,1.49245668,53823.0,53822.0,0.001628]
[1725811295898,1.59245668,53823.0,53822.0,0.001628]
[1725811299937,0.86477,53823.0,53809.0,0.00163]
[1725811300174,0.888613,53810.0,53809.0,0.00163]
[1725811300435,1.483297,53810.0,53809.0,0.00163]
[1725811300689,1.903639,53810.0,53809.0,0.00163]
[1725811301148,0.148734,53787.0,53786.0,0.001632]
[1725811301397,0.4471,53787.0,53786.0,0.001632]
[1725811301618,0.993303,53787.0,53786.0,0.001632]
[1725811301834,1.313772,53787.0,53786.0,0.001632]
[1725811303226,1.016303,53787.0,53786.0,0.001632]
[1725811303469,0.5471,53787.0,53786.0,0.001632]
[1725811303699,0.2643,53787.0,53786.0,0.001632]
[1725811304120,0.413034,53787.0,53786.0,0.001632]
[1725811304333,1.5708244,53787.0,53786.0,0.001632]
[1725811304571,1.6708244,53787.0,53786.0,0.001632]
[1725811304822,1.313772,53787.0,53786.0,0.001632]
[1725811306378,1.611241,53787.0,53786.0,0.001632]
[1725811307516,1.313772,53787.0,53786.0,0.001632]
[1725811308409,0.695834,53787.0,53786.0,0.001632]
[1725811308617,0.5471,53787.0,53786.0,0.001632]
[1725811308842,0.695834,53787.0,53786.0,0.001632]
[1725811309059,0.5471,53787.0,53786.0,0.001632]
[1725811309780,0.4471,53787.0,53786.0,0.001632]
[1725811310004,0.595834,53787.0,53786.0,0.001632]
[1725811310223,1.190772,53787.0,53786.0,0.001632]
[1725811310652,0.893303,53787.0,53786.0,0.001632]
[1725811311298,0.4471,53787.0,53786.0,0.001632]
[1725811311515,0.595834,53787.0,53786.0,0.001632]
[1725811312510,0.4471,53787.0,53786.0,0.001632]
[1725811312972,0.2643,53787.0,53786.0,0.001632]
[1725811313186,0.2511,53790.0,53786.0,0.001632]
[1725811314813,0.148733,53788.0,53786.0,0.001632]
[1725811315072,0.697284,53790.0,53786.0,0.001632]
[1725811315300,0.446203,53787.0,53786.0,0.001632]
[1725811315778,0.320459,53789.0,53786.0,0.001632]
[1725811316000,0.148734,53787.0,53786.0,0.001632]
[1725811316406,0.688503,53787.0,53786.0,0.001632]
[1725811317070,0.985972,53787.0,53786.0,0.001632]
[1725811317552,1.5883382,53787.0,53786.0,0.001632]
[1725811317768,1.587441,53787.0,53786.0,0.001632]
[1725811319378,1.587441,53787.0,53782.0,0.001632]
[1725811319379,1.736176,53787.0,53782.0,0.001632]
[1725811319592,0.743727,53783.0,53782.0,0.001632]
[1725811319827,1.5958832,53783.0,53782.0,0.001632]
[1725811320038,1.587518,53783.0,53782.0,0.001632]
[1725811321188,1.885009,53783.0,53782.0,0.001632]
[1725811321401,1.887009,53783.0,53782.0,0.001632]
[1725811322331,1.885009,53783.0,53782.0,0.001632]
[1725811322802,1.587518,53783.0,53782.0,0.001632]
[1725811323463,1.61681575,53783.0,53782.0,0.001632]
[1725811323677,1.862009,53783.0,53782.0,0.001632]
[1725811323895,1.872009,53783.0,53782.0,0.001632]
[1725811324125,1.872009,53783.0,53774.0,0.00112]
[1725811324126,1.464676,53775.0,53774.0,0.00112]
[1725811324341,1.7111436,53775.0,53774.0,0.00112]
[1725811324760,1.7341436,53775.0,53774.0,0.00112]
[1725811324966,1.587676,53775.0,53774.0,0.00112]
[1725811325869,1.885212,53775.0,53774.0,0.00112]
[1725811326086,1.885212,53775.0,53760.0,0.00015]
[1725811326087,0.572106,53761.0,53760.0,0.00015]
[1725811326302,1.190332,53761.0,53760.0,0.00015]
[1725811326978,1.51490062,53761.0,53760.0,0.00015]
[1725811327195,1.885558,53761.0,53760.0,0.00015]
[1725811327413,1.885558,53761.0,53751.0,0.01055]
[1725811327414,0.446494,53752.0,53751.0,0.0057]
[1725811327629,1.009457,53752.0,53751.0,0.0057]
[1725811327894,1.190457,53752.0,53751.0,0.0057]
[1725811328343,0.2423,53752.0,53751.0,0.0057]
[1725811328594,0.297555,53772.0,53751.0,0.09988617]
[1725811328829,0.2423,53764.0,53755.0,0.148823]
[1725811329051,0.2423,53764.0,53753.0,0.148827]
[1725811329266,0.2423,53764.0,53754.0,0.29765]
[1725811329267,0.24207632,53764.0,53754.0,0.29765]
[1725811329473,0.24207632,53764.0,53751.0,0.00942027]
[1725811329677,0.39087532,53764.0,53752.0,0.297661]
[1725811329892,0.181,53767.0,53756.0,0.647637]
[1725811330107,0.181,53767.0,53758.0,0.148813]
[1725811330108,0.329792,53767.0,53758.0,0.148813]
[1725811330347,0.329792,53767.0,53756.0,0.498818]
[1725811330348,0.181,53767.0,53756.0,0.498818]
[1725811330571,0.148799,53764.0,53756.0,0.498818]
[1725811330793,0.397586,53766.0,53756.0,0.498818]
[1725811330794,0.297594,53765.0,53756.0,0.35]
[1725811331017,0.148811,53760.0,53751.0,0.154533]
[1725811331228,0.148812,53759.0,53752.0,0.148831]
[1725811331441,0.14881,53760.0,53752.0,0.148831]
[1725811331684,0.148816,53758.0,53751.0,0.0057]
[1725811331913,0.1,53766.0,53751.0,0.0057]
[1725811331914,0.297604,53763.0,53751.0,0.0057]
[1725811332149,0.148827,53754.0,53751.0,0.0057]
[1725811332393,0.2582,53753.0,53751.0,0.0057]
[1725811333493,0.148831,53752.0,53751.0,0.0057]
[1725811333723,0.407029,53753.0,53751.0,0.0057]
[1725811333935,0.2582,53753.0,53751.0,0.0057]
[1725811334181,0.2582,53760.0,53753.0,0.148827]
[1725811334401,0.2582,53760.0,53751.0,0.0057]
[1725811334402,0.148819,53757.0,53751.0,0.0057]
[1725811334624,0.407031,53752.0,53751.0,0.0057]
[1725811334835,0.704694,53752.0,53751.0,0.0057]
[1725811335292,1.197257,53752.0,53751.0,0.0057]
[1725811337773,1.197257,53752.0,53751.0,0.00733]
[1725811338205,0.601931,53752.0,53751.0,0.00733]
[1725811338436,0.899594,53752.0,53751.0,0.00733]
[1725811338667,1.197257,53752.0,53751.0,0.00733]
[1725811338878,1.320257,53752.0,53751.0,0.00733]
[1725811339107,1.297257,53752.0,53751.0,0.00733]
[1725811339995,0.999594,53752.0,53751.0,0.00733]
[1725811340208,0.297642,53756.0,53751.0,0.00733]
[1725811340209,0.2265,53755.0,53751.0,0.00733]
[1725811340411,0.3265,53755.0,53753.0,0.148828]
[1725811340862,0.2265,53760.0,53751.0,0.0110506]
[1725811341092,0.148794,53766.0,53762.0,0.148803]
[1725811341093,0.4182,53766.0,53762.0,0.148803]
[1725811341327,0.4182,53766.0,53753.0,0.35]
[1725811341540,0.4182,53766.0,53742.0,0.317714]
[1725811341541,0.297592,53765.0,53751.0,0.00733]
[1725811341745,0.297599,53764.0,53751.0,0.00733]
[1725811341959,0.4182,53766.0,53754.0,0.148825]
[1725811341960,0.148807,53761.0,53754.0,0.148825]
[1725811342179,0.4182,53766.0,53755.0,0.148823]
[1725811342180,0.148804,53762.0,53755.0,0.148823]
[1725811342627,0.297597,53764.0,53753.0,0.148827]
[1725811342858,0.297597,53764.0,53755.0,0.148823]
[1725811343066,0.148804,53762.0,53755.0,0.148823]
[1725811343539,0.148808,53761.0,53753.0,0.148827]
[1725811343749,0.148808,53761.0,53754.0,0.148826]
[1725811343972,0.148805,53762.0,53751.0,0.00733]
[1725811344176,0.148802,53763.0,53753.0,0.297655]
[1725811344384,0.148802,53763.0,53756.0,0.148819]
[1725811344592,0.4182,53766.0,53755.0,0.297645]
[1725811344816,0.1,53765.0,53760.0,0.148808]
[1725811345035,0.1,53765.0,53756.0,0.297639]
[1725811345277,0.248796,53765.0,53759.0,0.148812]
[1725811345523,0.397594,53765.0,53753.0,0.297653]
[1725811345717,0.397594,53765.0,53751.0,0.00733]
[1725811345718,0.397594,53765.0,53752.0,0.29766]
[1725811345984,0.297603,53763.0,53755.0,0.148822]
[1725811346188,0.148804,53762.0,53756.0,0.148819]
[1725811346391,0.2265,53764.0,53753.0,0.148826]
[1725811346392,0.14881,53760.0,53753.0,0.148826]
[1725811346605,0.148805,53762.0,53752.0,0.297663]
[1725811346828,0.2265,53764.0,53752.0,0.297663]
[1725811347060,0.2265,53759.0,53753.0,0.148828]
[1725811347283,0.2265,53759.0,53752.0,0.297663]
[1725811347284,0.2265,53759.0,53755.0,0.148822]
[1725811347485,0.2265,53759.0,53755.0,0.148821]
[1725811347692,0.2265,53759.0,53756.0,0.14882]
[1725811347899,0.148805,53762.0,53752.0,0.297663]
[1725811347900,0.2265,53762.0,53761.0,0.148806]
[1725811348112,0.2265,53762.0,53752.0,0.0513]
[1725811348113,0.2265,53762.0,53759.0,0.14881]
[1725811348364,0.307533,53776.0,53759.0,0.14881]
[1725811348365,0.2265,53771.0,53760.0,0.35]
[1725811348589,0.1917,53775.0,53760.0,0.35]
[1725811348590,0.2265,53774.0,53770.0,0.148781]
[1725811348813,0.35618836,53782.0,53765.0,0.0513]
[1725811348814,0.2265,53785.0,53782.0,0.148747]
[1725811349040,0.2265,53785.0,53772.0,0.5]
[1725811349041,0.2265,53785.0,53776.0,0.29753]
[1725811349251,0.2265,53785.0,53777.0,0.148761]
[1725811349515,0.2265,53785.0,53776.0,0.148764]
[1725811349741,0.297507,53781.0,53766.0,0.35]
[1725811349978,0.14876,53778.0,53771.0,0.148777]
[1725811350216,0.2265,53783.0,53771.0,0.148777]
[1725811350217,0.2265,53783.0,53782.0,0.148748]
[1725811350642,0.2265,53783.0,53772.0,0.35]
[1725811351149,0.000815,53786.0,53785.0,0.14874]
[1725811351354,0.000815,53786.0,53785.0,0.737373]
[1725811351560,0.000815,53786.0,53785.0,1.087373]
[1725811351769,0.000815,53786.0,53785.0,0.492413]
[1725811352206,0.000815,53786.0,53785.0,0.35]
[1725811352699,0.000815,53786.0,53779.0,0.35]
[1725811353162,0.2295,53785.0,53779.0,0.498755]
[1725811353400,0.2295,53785.0,53780.0,0.148753]
[1725811353608,0.2295,53785.0,53779.0,0.35]
[1725811353816,0.2295,53785.0,53779.0,0.498756]
[1725811354454,0.37824,53785.0,53779.0,0.498756]
[1725811354721,0.000815,53786.0,53767.0,0.0513]
[1725811354722,0.1816,53784.0,53767.0,0.0513]
[1725811354933,0.1816,53772.0,53760.0,0.647615]
[1725811355149,0.1816,53772.0,53760.0,0.35]
[1725811355150,0.2295,53770.0,53760.0,0.35]
[1725811355402,0.297595,53765.0,53754.0,0.35]
[1725811355641,0.2295,53770.0,53765.0,0.148794]
[1725811355871,0.2295,53770.0,53757.0,0.35]
[1725811356122,0.2295,53770.0,53769.0,0.148784]
[1725811356366,0.2295,53770.0,53763.0,0.647598]
[1725811356866,0.2295,53770.0,53767.0,0.148789]
[1725811357091,0.2295,53770.0,53765.0,0.148794]
[1725811357092,0.2285,53770.0,53765.0,0.148794]
[1725811357339,0.2285,53770.0,53766.0,0.148792]
[1725811357605,0.1,53780.0,53766.0,0.4013]
[1725811357606,0.148758,53779.0,53766.0,0.4013]
[1725811357837,0.2854,53780.0,53769.0,0.148784]
[1725811357838,0.1854,53780.0,53769.0,0.148784]
[1725811358076,0.148766,53776.0,53768.0,0.297572]
[1725811358310,0.148766,53776.0,53770.0,0.148781]
[1725811358554,0.29752,53778.0,53768.0,0.297572]
[1725811358793,0.1,53779.0,53769.0,0.297567]
[1725811359022,0.148766,53776.0,53769.0,0.148783]
[1725811359500,0.148766,53776.0,53770.0,0.14878]
[1725811359931,0.2196,53774.0,53768.0,0.148785]
[1725811360194,0.2196,53774.0,53759.0,0.297623]
[1725811360195,0.297453,53790.0,53776.0,0.35]
[1725811360465,1.22932404,53799.0,53776.0,0.35]
[1725811360466,0.05484841,53808.0,53807.0,0.01]
[1725811360757,0.000814,53827.0,53817.0,1.028651]
[1725811360996,0.000814,53827.0,53817.0,4.22658284]
[1725811361236,0.000814,53827.0,53817.0,4.52588584]
[1725811361732,0.000814,53827.0,53817.0,4.34098284]
[1725811361970,0.000814,53827.0,53817.0,2.48308679]
[1725811362212,0.000814,53827.0,53817.0,2.59034543]
[1725811363148,0.000814,53827.0,53817.0,2.77509782]
[1725811363386,0.000814,53827.0,53817.0,3.07240082]
[1725811363607,0.000814,53827.0,53817.0,2.77509782]
[1725811364136,0.000814,53827.0,53824.0,1.900427]
[1725811364373,0.000814,53827.0,53824.0,2.72793437]
[1725811367931,0.35058836,53839.0,53835.0,0.148599]
[1725811368156,0.148586,53841.0,53835.0,0.148599]
[1725811368411,0.55430836,53844.0,53834.0,0.35]
[1725811368412,0.148584,53842.0,53834.0,0.35]
[1725811368653,0.297155,53844.0,53834.0,0.35]
[1725811368874,0.148585,53841.0,53835.0,0.148601]
[1725811369137,0.29715,53845.0,53836.0,0.148598]
[1725811369365,0.148585,53841.0,53834.0,0.498603]
[1725811369589,0.14858,53843.0,53837.0,0.148596]
[1725811370210,0.148583,53842.0,53835.0,0.1486]
[1725811370415,0.148583,53842.0,53836.0,0.148598]
[1725811371295,0.2091,53840.0,53835.0,0.148601]
[1725811371515,0.2091,53840.0,53836.0,0.148598]
[1725811371851,0.2091,53840.0,53837.0,0.148596]
[1725811372835,0.2091,53840.0,53834.0,0.35]
[1725811372836,0.2091,53840.0,53836.0,0.148599]
[1725811375078,0.2091,53840.0,53837.0,0.148595]
[1725811375562,0.149397,53842.0,53841.0,0.148585]
[1725811375563,0.000815,53842.0,53841.0,0.148585]
[1725811375794,0.000815,53842.0,53841.0,0.54491821]
[1725811376042,0.000815,53842.0,53841.0,0.84208921]
[1725811377444,0.000815,53842.0,53841.0,1.3464126]
[1725811377676,0.000815,53842.0,53841.0,1.8265836]
[1725811378138,0.000815,53842.0,53841.0,1.5294126]
[1725811378842,0.000815,53842.0,53841.0,1.5314126]
[1725811380480,0.000815,53842.0,53841.0,1.5512126]
[1725811380752,0.000815,53842.0,53841.0,1.8483836]
[1725811381433,0.000815,53842.0,53841.0,1.5138126]
[1725811381652,0.000815,53842.0,53841.0,1.5238126]
[1725811382578,0.000815,53842.0,53841.0,0.64491821]
[1725811382814,0.000815,53842.0,53841.0,0.65491821]
[1725811383295,0.000815,53842.0,53841.0,0.64491821]
[1725811383503,0.000815,53842.0,53841.0,0.65491821]
[1725811383714,0.000815,53842.0,53841.0,1.1368416]
[1725811383978,0.000815,53842.0,53841.0,1.5040126]
[1725811384418,0.000815,53842.0,53841.0,1.4540126]
[1725811384663,0.000815,53842.0,53841.0,1.5040126]
[1725811384901,0.000815,53842.0,53841.0,1.4540126]
[1725811385121,0.000815,53842.0,53841.0,1.5040126]
[1725811385365,0.000815,53842.0,53841.0,1.8011836]
[1725811385585,0.000815,53842.0,53841.0,1.8265836]
[1725811385845,0.000815,53842.0,53841.0,1.8483836]
[1725811386516,0.000815,53842.0,53841.0,1.8500116]
[1725811386726,0.000815,53842.0,53841.0,2.07370426]
[1725811386966,0.000815,53842.0,53841.0,2.07570426]
[1725811388154,0.000815,53842.0,53841.0,2.07370426]
[1725811388422,0.000815,53842.0,53841.0,2.07570426]
[1725811389123,0.08235041,53855.0,53854.0,1.592747]
[1725811389340,0.000815,53860.0,53859.0,0.148535]
[1725811389596,0.000815,53860.0,53859.0,1.02172665]
[1725811389828,0.000815,53860.0,53859.0,1.31879765]
[1725811390773,0.000815,53860.0,53859.0,1.32879765]
[1725811390990,0.000815,53860.0,53859.0,1.34879765]
[1725811391867,0.000815,53860.0,53859.0,1.36279765]
[1725811392082,0.000815,53860.0,53859.0,1.44879765]
[1725811392301,0.000815,53860.0,53859.0,1.45079765]
[1725811392543,0.000815,53860.0,53859.0,1.78486865]
[1725811392760,0.000815,53860.0,53859.0,1.49979765]
[1725811392972,0.000815,53860.0,53859.0,1.79886865]
[1725811393204,0.000815,53860.0,53859.0,1.50179765]
[1725811393418,0.000815,53860.0,53859.0,1.44879765]
[1725811393658,0.000815,53860.0,53859.0,1.46279765]
[1725811393883,0.000815,53860.0,53859.0,1.46479765]
[1725811394116,0.000815,53860.0,53859.0,1.46579765]
[1725811394331,0.000815,53860.0,53859.0,0.014]
[1725811394332,0.175815,53860.0,53859.0,0.014]
[1725811394543,0.175815,53860.0,53859.0,0.459606]
[1725811394779,0.000815,53860.0,53859.0,0.459606]
[1725811395010,0.000815,53860.0,53859.0,0.445606]
[1725811395221,0.000815,53860.0,53859.0,0.459606]
[1725811395431,0.000815,53860.0,53859.0,0.56847393]
[1725811395638,0.000815,53860.0,53859.0,0.83754493]
[1725811395855,0.000815,53860.0,53859.0,1.03629732]
[1725811396068,0.000815,53860.0,53859.0,1.13051989]
[1725811396280,0.000815,53860.0,53859.0,0.81944889]
[1725811396757,0.000815,53860.0,53859.0,1.12651989]
[1725811396993,0.000815,53860.0,53859.0,1.11651989]
[1725811397228,0.000815,53860.0,53859.0,1.13051989]
[1725811397702,0.000815,53860.0,53859.0,1.05029732]
[1725811397916,0.000815,53860.0,53859.0,1.13052019]
[1725811398150,0.000815,53860.0,53859.0,1.11652019]
[1725811398380,0.000815,53860.0,53859.0,0.9177678]
[1725811398605,0.000815,53860.0,53859.0,0.9317678]
[1725811398839,0.000815,53860.0,53859.0,0.9457678]
[1725811399071,0.000815,53860.0,53859.0,0.9317678]
[1725811399371,0.000815,53860.0,53859.0,0.9457678]
[1725811399805,0.000815,53860.0,53859.0,0.2030908]
[1725811400017,0.000815,53860.0,53859.0,0.3516258]
[1725811400230,0.000815,53860.0,53859.0,1.46130401]
[1725811400456,0.000815,53860.0,53859.0,1.45759119]
[1725811400674,0.000815,53860.0,53859.0,1.55759119]
[1725811401553,0.000815,53860.0,53859.0,1.55959119]
[1725811401756,0.000815,53860.0,53859.0,1.55759119]
[1725811402666,0.000815,53860.0,53859.0,1.55959119]
[1725811403076,0.000815,53860.0,53859.0,1.85666219]
[1725811403307,0.000815,53860.0,53859.0,1.87966219]
[1725811403535,0.000815,53860.0,53859.0,1.88966219]
[1725811404272,0.000815,53860.0,53859.0,1.80943932]
[1725811404533,0.000815,53860.0,53859.0,1.87564701]
[1725811404959,0.000815,53860.0,53859.0,1.88964701]
[1725811405189,0.000815,53860.0,53859.0,1.90364701]
[1725811405399,0.000815,53860.0,53859.0,1.88764701]
[1725811405615,0.000815,53860.0,53859.0,1.90164701]
[1725811405821,0.000815,53860.0,53859.0,1.90364701]
[1725811406847,0.000815,53860.0,53859.0,1.90348533]
[1725811407538,0.000815,53860.0,53859.0,1.60441562]
[1725811407794,0.000815,53860.0,53859.0,1.60641562]
[1725811408256,0.08060041,53873.0,53872.0,0.9985]
[1725811408483,0.2198,53873.0,53872.0,0.95927061]
[1725811409408,0.2198,53873.0,53872.0,0.94420898]
[1725811409622,0.2198,53873.0,53872.0,1.09270898]
[1725811409837,0.2198,53873.0,53872.0,1.68670898]
[1725811410074,0.2198,53873.0,53872.0,1.78357639]
[1725811410367,0.2198,53873.0,53872.0,1.37570898]
[1725811410850,0.2198,53873.0,53872.0,1.46676421]
[1725811411067,0.2198,53873.0,53872.0,0.9592703]
[1725811411523,0.2198,53873.0,53872.0,0.94420905]
[1725811411766,0.2198,53873.0,53872.0,0.95820905]
[1725811411992,0.2198,53873.0,53872.0,0.93020905]
[1725811412221,0.2198,53873.0,53872.0,0.94420905]
[1725811412477,0.2198,53873.0,53872.0,0.95820905]
[1725811412709,0.2198,53873.0,53872.0,0.93020905]
[1725811413018,0.2198,53873.0,53872.0,1.38970905]
[1725811413235,0.2198,53873.0,53872.0,1.70070905]
[1725811413480,0.2198,53873.0,53872.0,1.99770905]
[1725811413719,0.2198,53873.0,53872.0,2.18446144]
[1725811413963,0.2198,53873.0,53872.0,2.26268339]
[1725811414199,0.2198,53873.0,53872.0,2.30717968]
[1725811414440,0.2198,53873.0,53872.0,2.2781195]
[1725811415137,0.2198,53873.0,53872.0,2.21878561]
[1725811415383,0.2198,53873.0,53872.0,2.26411209]
[1725811415608,0.2198,53873.0,53872.0,2.27811209]
[1725811415837,0.2198,53873.0,53872.0,2.26411209]
[1725811416064,0.00081,53879.0,53878.0,1.592417]
[1725811416311,0.00081,53879.0,53878.0,1.6726157]
[1725811416531,0.00081,53879.0,53878.0,1.3756487]
[1725811416806,0.20651,53879.0,53878.0,1.3756487]
[1725811417261,0.20651,53879.0,53878.0,1.35478116]
[1725811417713,0.20651,53879.0,53878.0,0.90933116]
[1725811417959,0.20651,53879.0,53878.0,1.35478116]
[1725811418168,0.20651,53879.0,53878.0,1.36878116]
[1725811419458,0.20651,53879.0,53878.0,1.7613621]
[1725811420336,0.20651,53879.0,53878.0,1.71603094]
[1725811420574,0.20651,53879.0,53878.0,1.76136]
[1725811420787,0.20651,53879.0,53878.0,1.74736]
[1725811421015,0.20651,53879.0,53878.0,1.76136]